fUST/lending_fUST_20250210
["ID","MTS","AMOUNT","RATE_DAILY","PERIOD"]
[352520966,1739148640880,-1437.1,0.00011369,2]
[352520967,1739148640893,-3064.12,0.00011369,2]
[352520968,1739148640903,-550.12,0.00011369,2]
[352520969,1739148640916,-500.0,0.00011506,2]
[352520970,1739148640925,-500.0,0.00011506,2]
[352520971,1739148640935,-500.0,0.00011506,2]
[352520972,1739148640944,-500.0,0.00011506,2]
[352520973,1739148640954,-500.0,0.00011506,2]
[352520974,1739148640963,-500.0,0.00011506,2]
[352520975,1739148640973,-4499.24,0.00011506,2]
[352520976,1739148640983,-2912.9,0.00011506,2]
[352520977,1739148640992,-500.0,0.00011506,2]
[352520978,1739148641002,-500.0,0.00011506,2]
[352520979,1739148641011,-529.85,0.00011506,2]
[352520980,1739148641020,-902.07,0.00011506,2]
[352520981,1739148641029,-946.61,0.00011506,2]
[352520982,1739148641039,-500.0,0.00011506,2]
[352520983,1739148641048,-500.0,0.00011506,2]
[352520984,1739148641059,-500.0,0.00011506,2]
[352520985,1739148641069,-500.0,0.00011506,2]
[352520986,1739148641079,-500.0,0.00011506,2]
[352520987,1739148641088,-500.0,0.00011506,2]
[352520988,1739148641097,-3158.07,0.00011506,2]
[352520989,1739148641106,-500.0,0.00011506,2]
[352520990,1739148641115,-500.0,0.00011506,2]
[352520991,1739148641124,-500.0,0.00011506,2]
[352520992,1739148641134,-638.8,0.00011506,2]
[352520993,1739148641144,-793.32,0.00011506,2]
[352520994,1739148641153,-500.0,0.00011506,2]
[352520995,1739148641164,-500.0,0.00011506,2]
[352520996,1739148641173,-500.0,0.00011506,2]
[352520997,1739148641182,-500.0,0.00011506,2]
[352520998,1739148641191,-502.46,0.00011506,2]
[352520999,1739148641200,-853.4,0.00011506,2]
[352521000,1739148641210,-500.0,0.00011506,2]
[352521001,1739148641219,-668.41,0.00011506,2]
[352521002,1739148641229,-500.0,0.00011506,2]
[352521003,1739148641238,-301.26,0.00011506,2]
[352521004,1739148641247,-1437.1,0.00011506,2]
[352521005,1739148641257,-3064.12,0.00011506,2]
[352521006,1739148641266,-550.12,0.00011506,2]
[352521007,1739148641275,-500.0,0.00011643,2]
[352521008,1739148641284,-500.0,0.00011643,2]
[352521009,1739148641294,-500.0,0.00011643,2]
[352521010,1739148641303,-500.0,0.00011643,2]
[352521011,1739148641312,-500.0,0.00011643,2]
[352521012,1739148641321,-4499.24,0.00011643,2]
[352521013,1739148641330,-2912.9,0.00011643,2]
[352521014,1739148641339,-500.0,0.00011643,2]
[352521015,1739148641348,-500.0,0.00011643,2]
[352521016,1739148641357,-902.07,0.00011643,2]
[352521017,1739148641366,-946.61,0.00011643,2]
[352521018,1739148641376,-500.0,0.00011643,2]
[352521019,1739148641385,-498.93913495,0.00011643,2]
[352521020,1739148641394,-500.0,0.00011643,2]
[352521021,1739148641403,-500.0,0.00011643,2]
[352521022,1739148641414,-500.0,0.00011643,2]
[352521023,1739148641423,-500.0,0.00011643,2]
[352521024,1739148641432,-3158.07,0.00011643,2]
[352521025,1739148641441,-500.0,0.00011643,2]
[352521026,1739148641450,-500.0,0.00011643,2]
[352521027,1739148641460,-500.0,0.00011643,2]
[352521028,1739148641469,-793.32,0.00011643,2]
[352521029,1739148641478,-500.0,0.00011643,2]
[352521030,1739148641487,-500.0,0.00011643,2]
[352521031,1739148641496,-500.0,0.00011643,2]
[352521032,1739148641506,-500.0,0.00011643,2]
[352521033,1739148641515,-853.4,0.00011643,2]
[352521034,1739148641524,-500.0,0.00011643,2]
[352521035,1739148641533,-668.41,0.00011643,2]
[352521036,1739148641543,-500.0,0.00011643,2]
[352521037,1739148641552,-1437.1,0.00011643,2]
[352521038,1739148641562,-3064.12,0.00011643,2]
[352521039,1739148641571,-550.12,0.00011643,2]
[352521040,1739148641580,-500.0,0.0001178,2]
[352521041,1739148641589,-500.0,0.0001178,2]
[352521042,1739148641598,-500.0,0.0001178,2]
[352521043,1739148641607,-500.0,0.0001178,2]
[352521044,1739148641616,-500.0,0.0001178,2]
[352521045,1739148641625,-4499.24,0.0001178,2]
[352521046,1739148641633,-2912.9,0.0001178,2]
[352521047,1739148641643,-500.0,0.0001178,2]
[352521048,1739148641652,-500.0,0.0001178,2]
[352521049,1739148641663,-902.07,0.0001178,2]
[352521050,1739148641672,-946.61,0.0001178,2]
[352521051,1739148641681,-500.0,0.0001178,2]
[352521052,1739148641691,-500.0,0.0001178,2]
[352521053,1739148641700,-500.0,0.0001178,2]
[352521054,1739148641709,-500.0,0.0001178,2]
[352521055,1739148641718,-500.0,0.0001178,2]
[352521056,1739148641727,-3158.07,0.0001178,2]
[352521057,1739148641736,-500.0,0.0001178,2]
[352521058,1739148641748,-500.0,0.0001178,2]
[352521059,1739148641764,-500.0,0.0001178,2]
[352521060,1739148641773,-793.32,0.0001178,2]
[352521061,1739148641782,-500.0,0.0001178,2]
[352521062,1739148641791,-358.28,0.0001178,2]
[352521063,1739148641801,-500.0,0.0001178,2]
[352521064,1739148641810,-500.0,0.0001178,2]
[352521065,1739148641820,-853.4,0.0001178,2]
[352521066,1739148641829,-500.0,0.0001178,2]
[352521067,1739148641838,-668.41,0.0001178,2]
[352521068,1739148641847,-500.0,0.0001178,2]
[352521069,1739148641857,-1437.1,0.0001178,2]
[352521070,1739148641866,-3064.12,0.0001178,2]
[352521071,1739148641875,-550.12,0.0001178,2]
[352521072,1739148641884,-500.0,0.00011917,2]
[352521073,1739148641893,-500.0,0.00011917,2]
[352521074,1739148641903,-500.0,0.00011917,2]
[352521075,1739148641914,-500.0,0.00011917,2]
[352521076,1739148641924,-540.33788976,0.00011917,2]
[352521077,1739148641933,-4499.24,0.00011917,2]
[352521078,1739148641943,-2912.9,0.00011917,2]
[352521079,1739148641952,-500.0,0.00011917,2]
[352521080,1739148641961,-160.8,0.00011917,2]
[352521081,1739148641971,-902.07,0.00011917,2]
[352521082,1739148641980,-946.61,0.00011917,2]
[352521083,1739148641989,-500.0,0.00011917,2]
[352521084,1739148641999,-500.0,0.00011917,2]
[352521085,1739148642008,-500.0,0.00011917,2]
[352521086,1739148642017,-500.0,0.00011917,2]
[352521087,1739148642026,-500.0,0.00011917,2]
[352521088,1739148642035,-3158.07,0.00011917,2]
[352521089,1739148642045,-500.0,0.00011917,2]
[352521090,1739148642055,-500.0,0.00011917,2]
[352521091,1739148642066,-500.0,0.00011917,2]
[352521092,1739148642076,-793.32,0.00011917,2]
[352521093,1739148642084,-500.0,0.00011917,2]
[352521094,1739148642094,-500.0,0.00011917,2]
[352521095,1739148642103,-500.0,0.00011917,2]
[352521096,1739148642112,-853.4,0.00011917,2]
[352521097,1739148642121,-500.0,0.00011917,2]
[352521098,1739148642130,-668.41,0.00011917,2]
[352521099,1739148642140,-500.0,0.00011917,2]
[352521100,1739148642149,-1437.1,0.00011917,2]
[352521101,1739148642159,-3064.12,0.00011917,2]
[352521102,1739148642169,-550.12,0.00011917,2]
[352521103,1739148642178,-420.0,0.0001204,2]
[352521104,1739148642187,-500.0,0.00012054,2]
[352521105,1739148642196,-500.0,0.00012054,2]
[352521106,1739148642205,-500.0,0.00012054,2]
[352521107,1739148642215,-500.0,0.00012054,2]
[352521108,1739148642226,-4499.24,0.00012054,2]
[352521109,1739148642235,-2912.9,0.00012054,2]
[352521110,1739148642244,-500.0,0.00012054,2]
[352521111,1739148642253,-902.07,0.00012054,2]
[352521112,1739148642262,-946.61,0.00012054,2]
[352521113,1739148642272,-500.0,0.00012054,2]
[352521114,1739148642281,-500.0,0.00012054,2]
[352521115,1739148642290,-500.0,0.00012054,2]
[352521116,1739148642299,-500.0,0.00012054,2]
[352521117,1739148642308,-500.0,0.00012054,2]
[352521118,1739148642317,-3158.07,0.00012054,2]
[352521119,1739148642326,-500.0,0.00012054,2]
[352521120,1739148642335,-500.0,0.00012054,2]
[352521121,1739148642345,-561.03519767,0.00012054,2]
[352521122,1739148642354,-793.32,0.00012054,2]
[352521123,1739148642363,-500.0,0.00012054,2]
[352521124,1739148642371,-176.65362304,0.00012054,2]
[352521125,1739148642381,-500.0,0.00012054,2]
[352521126,1739148642390,-853.4,0.00012054,2]
[352521127,1739148642399,-500.0,0.00012054,2]
[352521128,1739148642409,-668.41,0.00012054,2]
[352521129,1739148642418,-500.0,0.00012054,2]
[352521130,1739148642427,-1437.1,0.00012054,2]
[352521131,1739148642437,-3064.12,0.00012054,2]
[352521132,1739148642446,-301.34004777,0.00012141,2]
[352521133,1739148642456,-500.0,0.00012141,2]
[352521134,1739148642465,-436.17718841,0.00012191,2]
[352521135,1739148642474,-643.96145813,0.00012191,2]
[352521136,1739148642483,-500.0,0.00012191,2]
[352521137,1739148642493,-4499.24,0.00012191,2]
[352521138,1739148642503,-2912.9,0.00012191,2]
[352521139,1739148642512,-449.76321266,0.00012191,2]
[352521140,1739148642521,-902.07,0.00012191,2]
[352521141,1739148642530,-946.61,0.00012191,2]
[352521142,1739148642540,-500.0,0.00012191,2]
[352521143,1739148642549,-500.0,0.00012191,2]
[352521144,1739148642558,-500.0,0.00012191,2]
[352521145,1739148642567,-500.0,0.00012191,2]
[352521146,1739148642577,-500.0,0.00012191,2]
[352521147,1739148642587,-3158.07,0.00012191,2]
[352521148,1739148642596,-500.0,0.00012191,2]
[352521149,1739148642605,-500.0,0.00012191,2]
[352521150,1739148642615,-793.32,0.00012191,2]
[352521151,1739148642624,-500.0,0.00012191,2]
[352521152,1739148642633,-500.0,0.00012191,2]
[352521153,1739148642643,-853.4,0.00012191,2]
[352521154,1739148642652,-500.0,0.00012191,2]
[352521155,1739148642663,-668.41,0.00012191,2]
[352521156,1739148642672,-500.0,0.00012191,2]
[352521157,1739148642682,-1437.1,0.00012191,2]
[352521158,1739148642691,-3064.12,0.00012191,2]
[352521159,1739148642700,-800.0,0.00012289,2]
[352521161,1739148642710,-500.0,0.00012328,2]
[352521162,1739148642719,-4499.24,0.00012328,2]
[352521163,1739148642728,-2912.9,0.00012328,2]
[352521164,1739148642737,-902.07,0.00012328,2]
[352521165,1739148642747,-946.61,0.00012328,2]
[352521166,1739148642756,-500.0,0.00012328,2]
[352521167,1739148642765,-500.0,0.00012328,2]
[352521168,1739148642775,-500.0,0.00012328,2]
[352521169,1739148642784,-500.0,0.00012328,2]
[352521172,1739148642794,-500.0,0.00012328,2]
[352521174,1739148642803,-3158.07,0.00012328,2]
[352521175,1739148642812,-500.0,0.00012328,2]
[352521176,1739148642821,-500.0,0.00012328,2]
[352521177,1739148642830,-793.32,0.00012328,2]
[352521178,1739148642840,-500.0,0.00012328,2]
[352521179,1739148642849,-251.43,0.00012328,2]
[352521180,1739148642858,-853.4,0.00012328,2]
[352521181,1739148642868,-500.0,0.00012328,2]
[352521182,1739148642877,-668.41,0.00012328,2]
[352521183,1739148642887,-500.0,0.00012328,2]
[352521184,1739148642896,-1437.1,0.00012328,2]
[352521185,1739148642906,-3064.12,0.00012328,2]
[352521186,1739148642915,-500.0,0.00012464,2]
[352521187,1739148642924,-167.35933139,0.00012464,2]
[352521188,1739148642933,-500.0,0.00012464,2]
[352521189,1739148642943,-500.0,0.00012464,2]
[352521190,1739148642952,-500.0,0.00012465,2]
[352521191,1739148642963,-4499.24,0.00012465,2]
[352521192,1739148642973,-2912.9,0.00012465,2]
[352521193,1739148642983,-902.07,0.00012465,2]
[352521194,1739148642992,-946.61,0.00012465,2]
[352521195,1739148643002,-500.0,0.00012465,2]
[352521196,1739148643020,-446.34,0.00012465,2]
[352521197,1739148643121,-500.0,0.00012465,2]
[352521198,1739148643132,-500.0,0.00012465,2]
[352521199,1739148643142,-500.0,0.00012465,2]
[352521200,1739148643152,-3158.07,0.00012465,2]
[352521201,1739148643161,-154.89260018,0.00012465,2]
[352521202,1739148643171,-500.0,0.00012465,2]
[352521203,1739148643180,-793.32,0.00012465,2]
[352521204,1739148643190,-500.0,0.00012465,2]
[352521205,1739148643199,-853.4,0.00012465,2]
[352521206,1739148643209,-500.0,0.00012465,2]
[352521207,1739148643219,-668.41,0.00012465,2]
[352521208,1739148643229,-500.0,0.00012465,2]
[352521209,1739148643238,-1437.1,0.00012465,2]
[352521210,1739148643247,-3064.12,0.00012465,2]
[352521211,1739148643257,-500.0,0.00012602,2]
[352521212,1739148643266,-4499.24,0.00012602,2]
[352521213,1739148643275,-2912.9,0.00012602,2]
[352521214,1739148643285,-902.07,0.00012602,2]
[352521216,1739148643294,-946.61,0.00012602,2]
[352521218,1739148643303,-500.0,0.00012602,2]
[352521220,1739148643313,-500.0,0.00012602,2]
[352521221,1739148643322,-500.0,0.00012602,2]
[352521222,1739148643331,-500.0,0.00012602,2]
[352521223,1739148643341,-3158.07,0.00012602,2]
[352521224,1739148643350,-500.0,0.00012602,2]
[352521225,1739148643361,-793.32,0.00012602,2]
[352521226,1739148643370,-500.0,0.00012602,2]
[352521227,1739148643380,-853.4,0.00012602,2]
[352521228,1739148643389,-500.0,0.00012602,2]
[352521229,1739148643398,-668.41,0.00012602,2]
[352521230,1739148643408,-205.70288228,0.00012602,2]
[352521231,1739148643417,-1437.1,0.00012602,2]
[352521232,1739148643426,-3064.12,0.00012602,2]
[352521233,1739148643435,-1000.0,0.00012689,2]
[352521234,1739148643444,-500.0,0.00012739,2]
[352521236,1739148643454,-4499.24,0.00012739,2]
[352521237,1739148643464,-2912.9,0.00012739,2]
[352521238,1739148643473,-902.07,0.00012739,2]
[352521239,1739148643482,-946.61,0.00012739,2]
[352521240,1739148643491,-500.0,0.00012739,2]
[352521241,1739148643500,-500.0,0.00012739,2]
[352521242,1739148643509,-500.0,0.00012739,2]
[352521243,1739148643519,-500.0,0.00012739,2]
[352521244,1739148643528,-3158.07,0.00012739,2]
[352521245,1739148643537,-500.0,0.00012739,2]
[352521246,1739148643546,-793.32,0.00012739,2]
[352521247,1739148643556,-500.0,0.00012739,2]
[352521248,1739148643565,-853.4,0.00012739,2]
[352521249,1739148643574,-500.0,0.00012739,2]
[352521250,1739148643583,-668.41,0.00012739,2]
[352521251,1739148643592,-1437.1,0.00012739,2]
[352521252,1739148643601,-3064.12,0.00012739,2]
[352521253,1739148643611,-500.0,0.00012876,2]
[352521254,1739148643619,-4499.24,0.00012876,2]
[352521255,1739148643629,-2912.9,0.00012876,2]
[352521256,1739148643638,-902.07,0.00012876,2]
[352521257,1739148643647,-946.61,0.00012876,2]
[352521258,1739148643656,-500.0,0.00012876,2]
[352521259,1739148643665,-500.0,0.00012876,2]
[352521260,1739148643675,-500.0,0.00012876,2]
[352521261,1739148643687,-500.0,0.00012876,2]
[352521262,1739148643697,-3158.07,0.00012876,2]
[352521263,1739148643705,-500.0,0.00012876,2]
[352521264,1739148643715,-793.32,0.00012876,2]
[352521265,1739148643724,-394.06138369,0.00012876,2]
[352521266,1739148643734,-853.4,0.00012876,2]
[352521267,1739148643743,-500.0,0.00012876,2]
[352521268,1739148643752,-668.41,0.00012876,2]
[352521269,1739148643761,-1437.1,0.00012876,2]
[352521270,1739148643770,-3064.12,0.00012876,2]
[352521271,1739148643780,-7438.69753278,0.00013,2]
[352521272,1739148643789,-500.0,0.00013013,2]
[352521273,1739148643799,-4499.24,0.00013013,2]
[352521274,1739148643808,-2912.9,0.00013013,2]
[352521275,1739148643819,-902.07,0.00013013,2]
[352521276,1739148643829,-946.61,0.00013013,2]
[352521277,1739148643838,-500.0,0.00013013,2]
[352521278,1739148643847,-500.0,0.00013013,2]
[352521279,1739148643857,-637.38517285,0.00013013,2]
[352521280,1739148643866,-500.0,0.00013013,2]
[352521281,1739148643875,-3158.07,0.00013013,2]
[352521282,1739148643885,-500.0,0.00013013,2]
[352521283,1739148643894,-793.32,0.00013013,2]
[352521284,1739148643903,-853.4,0.00013013,2]
[352521285,1739148643914,-500.0,0.00013013,2]
[352521286,1739148643924,-668.41,0.00013013,2]
[352521287,1739148643933,-1437.1,0.00013013,2]
[352521288,1739148643942,-3064.12,0.00013013,2]
[352521289,1739148643953,-500.0,0.0001315,2]
[352521290,1739148643964,-4499.24,0.0001315,2]
[352521291,1739148643974,-2912.9,0.0001315,2]
[352521292,1739148643983,-902.07,0.0001315,2]
[352521293,1739148643993,-946.61,0.0001315,2]
[352521294,1739148644002,-500.0,0.0001315,2]
[352521295,1739148644013,-500.0,0.0001315,2]
[352521296,1739148644022,-500.0,0.0001315,2]
[352521297,1739148644031,-3158.07,0.0001315,2]
[352521298,1739148644040,-500.0,0.0001315,2]
[352521299,1739148644050,-793.32,0.0001315,2]
[352521300,1739148644062,-853.4,0.0001315,2]
[352521301,1739148644072,-500.0,0.0001315,2]
[352521302,1739148644082,-668.41,0.0001315,2]
[352521303,1739148644092,-1437.1,0.0001315,2]
[352521304,1739148644102,-3064.12,0.0001315,2]
[352521305,1739148644111,-173.69419009,0.00013287,2]
[352521306,1739148644120,-4499.24,0.00013287,2]
[352521307,1739148644130,-2912.9,0.00013287,2]
[352521308,1739148644141,-902.07,0.00013287,2]
[352521309,1739148644150,-946.61,0.00013287,2]
[352521310,1739148644160,-500.0,0.00013287,2]
[352521311,1739148644170,-500.0,0.00013287,2]
[352521312,1739148644179,-500.0,0.00013287,2]
[352521313,1739148644189,-3158.07,0.00013287,2]
[352521314,1739148644199,-500.0,0.00013287,2]
[352521315,1739148644211,-793.32,0.00013287,2]
[352521316,1739148644221,-853.4,0.00013287,2]
[352521317,1739148644232,-500.0,0.00013287,2]
[352521318,1739148644241,-668.41,0.00013287,2]
[352521319,1739148644251,-1437.1,0.00013287,2]
[352521320,1739148644260,-3064.12,0.00013287,2]
[352521321,1739148644269,-151.0,0.00013368,2]
[352521322,1739148644278,-4499.24,0.00013424,2]
[352521323,1739148644288,-2912.9,0.00013424,2]
[352521324,1739148644298,-902.07,0.00013424,2]
[352521325,1739148644307,-946.61,0.00013424,2]
[352521326,1739148644316,-500.0,0.00013424,2]
[352521327,1739148644325,-500.0,0.00013424,2]
[352521328,1739148644335,-500.0,0.00013424,2]
[352521329,1739148644344,-3158.07,0.00013424,2]
[352521330,1739148644353,-537.09,0.00013424,2]
[352521331,1739148644363,-793.32,0.00013424,2]
[352521332,1739148644372,-853.4,0.00013424,2]
[352521333,1739148644381,-500.0,0.00013424,2]
[352521334,1739148644390,-668.41,0.00013424,2]
[352521335,1739148644399,-1437.1,0.00013424,2]
[352521336,1739148644408,-3064.12,0.00013424,2]
[352521337,1739148644417,-4499.24,0.00013561,2]
[352521338,1739148644427,-2912.9,0.00013561,2]
[352521339,1739148644436,-902.07,0.00013561,2]
[352521340,1739148644445,-946.61,0.00013561,2]
[352521341,1739148644454,-500.0,0.00013561,2]
[352521342,1739148644464,-500.0,0.00013561,2]
[352521343,1739148644473,-521.51128124,0.00013561,2]
[352521344,1739148644483,-3158.07,0.00013561,2]
[352521345,1739148644492,-793.32,0.00013561,2]
[352521346,1739148644501,-853.4,0.00013561,2]
[352521347,1739148644510,-492.16331791,0.00013561,2]
[352521348,1739148644520,-668.41,0.00013561,2]
[352521349,1739148644529,-1437.1,0.00013561,2]
[352521350,1739148644538,-3064.12,0.00013561,2]
[352521351,1739148644548,-800.0,0.00013659,2]
[352521352,1739148644558,-500.0,0.00013691,2]
[352521353,1739148644567,-500.0,0.00013698,2]
[352521354,1739148644576,-4499.24,0.00013698,2]
[352521355,1739148644586,-2912.9,0.00013698,2]
[352521356,1739148644595,-902.07,0.00013698,2]
[352521357,1739148644604,-946.61,0.00013698,2]
[352521358,1739148644614,-272.34859601,0.00013698,2]
[352521359,1739148644623,-357.85478696,0.00013698,2]
[352521360,1739148644633,-3158.07,0.00013698,2]
[352521361,1739148644643,-793.32,0.00013698,2]
[352521362,1739148644652,-853.4,0.00013698,2]
[352521363,1739148644662,-668.41,0.00013698,2]
[352521364,1739148644671,-1437.1,0.00013698,2]
[352521365,1739148644680,-3064.12,0.00013698,2]
[352521366,1739148644690,-934.097946,0.00013699,2]
[352521367,1739148644699,-205.6991775,0.00013699,2]
[352521368,1739148644708,-2559.875172,0.00013699,2]
[352521369,1739148644717,-2802.6098397,0.00013699,2]
[352521370,1739148644727,-500.0,0.00013699,2]
[352521371,1739148644736,-213.04506707,0.00013699,2]
[352521372,1739148644746,-1313.17401482,0.00013699,2]
[352521373,1739148644755,-1313.17401482,0.00013699,2]
[352521374,1739148644765,-1313.17401482,0.00013699,2]
[352521375,1739148644774,-1313.17401482,0.00013699,2]
[352521376,1739148644783,-1313.17401482,0.00013699,2]
[352521377,1739148644793,-1313.17401482,0.00013699,2]
[352521378,1739148644802,-1313.17401482,0.00013699,2]
[352521379,1739148644812,-1313.17401482,0.00013699,2]
[352521380,1739148644820,-1313.17401482,0.00013699,2]
[352521381,1739148644829,-1313.17401482,0.00013699,2]
[352521382,1739148644838,-941.43317971,0.00013699,2]
[352521383,1739148644858,-371.74083511,0.00013699,2]
[352521384,1739148644868,-1313.17401482,0.00013699,2]
[352521385,1739148644877,-1313.17401482,0.00013699,2]
[352521386,1739148644887,-1313.17401482,0.00013699,2]
[352521387,1739148644897,-1313.17401482,0.00013699,2]
[352521388,1739148644907,-1313.17401482,0.00013699,2]
[352521389,1739148644918,-1313.17401482,0.00013699,2]
[352521390,1739148644928,-1313.17401482,0.00013699,2]
[352521391,1739148644938,-1313.17401482,0.00013699,2]
[352521392,1739148644948,-1313.17401482,0.00013699,2]
[352521393,1739148644958,-1313.17401482,0.00013699,2]
[352521394,1739148644968,-1313.17401482,0.00013699,2]
[352521395,1739148644978,-1313.17401482,0.00013699,2]
[352521396,1739148644988,-1313.17401482,0.00013699,2]
[352521397,1739148644998,-1313.17401482,0.00013699,2]
[352521398,1739148645008,-1313.17401482,0.00013699,2]
[352521399,1739148645018,-1313.17401482,0.00013699,2]
[352521400,1739148645028,-1313.17401482,0.00013699,2]
[352521401,1739148645038,-1313.17401482,0.00013699,2]
[352521402,1739148645048,-1313.17401482,0.00013699,2]
[352521403,1739148645061,-1313.17401482,0.00013699,2]
[352521404,1739148645071,-1313.17401482,0.00013699,2]
[352521405,1739148645081,-1313.17401482,0.00013699,2]
[352521406,1739148645091,-1313.17401482,0.00013699,2]
[352521407,1739148645102,-1313.17401482,0.00013699,2]
[352521408,1739148645112,-1313.17401482,0.00013699,2]
[352521409,1739148645121,-1313.17401482,0.00013699,2]
[352521410,1739148645131,-1313.17401482,0.00013699,2]
[352521411,1739148645141,-1313.17401482,0.00013699,2]
[352521412,1739148645151,-1313.17401482,0.00013699,2]
[352521413,1739148645161,-1313.17401482,0.00013699,2]
[352521414,1739148645170,-1313.17401482,0.00013699,2]
[352521415,1739148645180,-1313.17401482,0.00013699,2]
[352521416,1739148645189,-1313.17401482,0.00013699,2]
[352521417,1739148645199,-1313.17401482,0.00013699,2]
[352521418,1739148645209,-1313.17401482,0.00013699,2]
[352521419,1739148645218,-1313.17401482,0.00013699,2]
[352521420,1739148645229,-1313.17401482,0.00013699,2]
[352521421,1739148645239,-1313.17401482,0.00013699,2]
[352521422,1739148645248,-1313.17401482,0.00013699,2]
[352521423,1739148645257,-1313.17401482,0.00013699,2]
[352521424,1739148645267,-1737.91967771,0.00013699,2]
[352521425,1739148645276,-1737.91967771,0.00013699,2]
[352521426,1739148645285,-1737.91967771,0.00013699,2]
[352521427,1739148645294,-1737.91967771,0.00013699,2]
[352521428,1739148645304,-1737.91967771,0.00013699,2]
[352521429,1739148645313,-1737.91967771,0.00013699,2]
[352521430,1739148645323,-1737.91967771,0.00013699,2]
[352521431,1739148645332,-1737.91967771,0.00013699,2]
[352521432,1739148645341,-1737.91967771,0.00013699,2]
[352521433,1739148645350,-1737.91967771,0.00013699,2]
[352521434,1739148645359,-1737.91967771,0.00013699,2]
[352521435,1739148645368,-1737.91967771,0.00013699,2]
[352521436,1739148645378,-1737.91967771,0.00013699,2]
[352521437,1739148645387,-1737.91967771,0.00013699,2]
[352521438,1739148645396,-1737.91967771,0.00013699,2]
[352521439,1739148645406,-1737.91967771,0.00013699,2]
[352521440,1739148645416,-1737.91967771,0.00013699,2]
[352521441,1739148645425,-1737.91967771,0.00013699,2]
[352521442,1739148645435,-1737.91967771,0.00013699,2]
[352521443,1739148645445,-1737.91967771,0.00013699,2]
[352521444,1739148645455,-1737.91967771,0.00013699,2]
[352521445,1739148645465,-1737.91967771,0.00013699,2]
[352521446,1739148645474,-1737.91967771,0.00013699,2]
[352521447,1739148645484,-1737.91967771,0.00013699,2]
[352521448,1739148645494,-1737.91967771,0.00013699,2]
[352521449,1739148645503,-1737.91967771,0.00013699,2]
[352521450,1739148645513,-1737.91967771,0.00013699,2]
[352521451,1739148645523,-1737.91967771,0.00013699,2]
[352521452,1739148645532,-1737.91967771,0.00013699,2]
[352521453,1739148645542,-1737.91967771,0.00013699,2]
[352521454,1739148645552,-1737.91967771,0.00013699,2]
[352521456,1739148645648,-1737.91967771,0.00013699,2]
[352521457,1739148645659,-1737.91967771,0.00013699,2]
[352521458,1739148645669,-1737.91967771,0.00013699,2]
[352521459,1739148645679,-1737.91967768,0.00013699,2]
[352521460,1739148645689,-1737.91967768,0.00013699,2]
[352521461,1739148645699,-1737.91967768,0.00013699,2]
[352521462,1739148645709,-1737.91967768,0.00013699,2]
[352521463,1739148645719,-1737.91967766,0.00013699,2]
[352521464,1739148645729,-4499.24,0.00013835,2]
[352521465,1739148645738,-2912.9,0.00013835,2]
[352521466,1739148645748,-902.07,0.00013835,2]
[352521467,1739148645757,-946.61,0.00013835,2]
[352521468,1739148645767,-3158.07,0.00013835,2]
[352521470,1739148645778,-793.32,0.00013835,2]
[352521472,1739148645788,-853.4,0.00013835,2]
[352521473,1739148645797,-668.41,0.00013835,2]
[352521474,1739148645807,-1437.1,0.00013835,2]
[352521475,1739148645817,-3064.12,0.00013835,2]
[352521476,1739148645827,-4499.24,0.00013972,2]